[Event "Titled Tuesday Blitz March 14 Early 2023"]
[White "Csonka, Balazs"]
[Black "Vokhidov, Shamsiddin"]
[WhiteFideId "742910"]
[BlackFideId "14204223"]
[WhiteElo "2404"]
[BlackElo "2570"]
[Result "1-0"]
[Round "07"]
[TimeControl "180+2"]
[Date "2023.03.14"]
[WhiteClock "0:00:07"]
[BlackClock "0:00:07"]

1. e4 {[%clk 0:03:00]}  g6 {[%clk 0:03:00]} 2. d4 {[%clk 0:02:59]}  Nf6 {[%clk 0:03:01]} 3. Nc3 {[%clk 0:02:50]}  d6 {[%clk 0:03:01]} 4. Be3 {[%clk 0:02:44]}  c6 {[%clk 0:03:01]} 5. Qd2 {[%clk 0:02:43]}  Nbd7 {[%clk 0:03:00]} 6. O-O-O {[%clk 0:02:39]}  b5 {[%clk 0:03:00]} 7. Bd3 {[%clk 0:02:34]}  Qa5 {[%clk 0:02:59]} 8. Kb1 {[%clk 0:02:33]}  Bg7 {[%clk 0:02:57]} 9. Bh6 {[%clk 0:02:27]}  Bxh6 {[%clk 0:02:55]} 10. Qxh6 {[%clk 0:02:28]}  Nb6 {[%clk 0:02:48]} 11. Nf3 {[%clk 0:02:12]}  Be6 {[%clk 0:02:46]} 12. Ng5 {[%clk 0:01:46]}  b4 {[%clk 0:02:35]} 13. Nxe6 {[%clk 0:01:46]}  fxe6 {[%clk 0:02:31]} 14. Ne2 {[%clk 0:01:45]}  O-O-O {[%clk 0:02:28]} 15. Nf4 {[%clk 0:01:23]}  e5 {[%clk 0:02:27]} 16. Qh3+ {[%clk 0:01:17]}  Kb8 {[%clk 0:02:26]} 17. Ne6 {[%clk 0:01:17]}  Rc8 {[%clk 0:02:25]} 18. dxe5 {[%clk 0:01:16]}  Qxe5 {[%clk 0:02:25]} 19. f4 {[%clk 0:01:16]}  Qh5 {[%clk 0:02:22]} 20. Qxh5 {[%clk 0:01:07]}  Nxh5 {[%clk 0:02:23]} 21. g4 {[%clk 0:00:55]}  Nf6 {[%clk 0:02:21]} 22. g5 {[%clk 0:00:56]}  Nfd7 {[%clk 0:02:21]} 23. Ba6 {[%clk 0:00:46]}  Rcg8 {[%clk 0:02:19]} 24. Nd4 {[%clk 0:00:46]}  Kc7 {[%clk 0:02:16]} 25. Ne6+ {[%clk 0:00:46]}  Kb8 {[%clk 0:02:15]} 26. h4 {[%clk 0:00:41]}  Nf8 {[%clk 0:02:05]} 27. Nd4 {[%clk 0:00:35]}  Kc7 {[%clk 0:02:04]} 28. Rc1 {[%clk 0:00:30]}  h6 {[%clk 0:01:53]} 29. c3 {[%clk 0:00:26]}  bxc3 {[%clk 0:01:45]} 30. Rxc3 {[%clk 0:00:27]}  c5 {[%clk 0:01:45]} 31. b4 {[%clk 0:00:22]}  Nbd7 {[%clk 0:01:34]} 32. Nb3 {[%clk 0:00:14]}  hxg5 {[%clk 0:01:32]} 33. fxg5 {[%clk 0:00:14]}  Kb6 {[%clk 0:01:00]} 34. Bc8 {[%clk 0:00:14]}  cxb4 {[%clk 0:00:55]} 35. Rc4 {[%clk 0:00:14]}  Nc5 {[%clk 0:00:33]} 36. Rhc1 {[%clk 0:00:11]}  Rxh4 {[%clk 0:00:16]} 37. Rxb4+ {[%clk 0:00:11]}  Kc7 {[%clk 0:00:16]} 38. Nxc5 {[%clk 0:00:12]}  dxc5 {[%clk 0:00:17]} 39. Rxc5+ {[%clk 0:00:12]}  Kd6 {[%clk 0:00:15]} 40. Rd5+ {[%clk 0:00:11]}  Kc6 {[%clk 0:00:15]} 41. Rc4+ {[%clk 0:00:08]}  Kb6 {[%clk 0:00:15]} 42. a4 {[%clk 0:00:09]}  a6 {[%clk 0:00:13]} 43. a5+ {[%clk 0:00:08]}  Ka7 {[%clk 0:00:14]} 44. Rc7+ {[%clk 0:00:09]}  Kb8 {[%clk 0:00:14]} 45. Rc1 {[%clk 0:00:07]}  Rxe4 {[%clk 0:00:14]} 46. Bxa6 {[%clk 0:00:07]}  Ne6 {[%clk 0:00:14]} 47. Bc4 {[%clk 0:00:05]}  Rc8 {[%clk 0:00:12]} 48. Rb5+ {[%clk 0:00:05]}  Ka7 {[%clk 0:00:12]} 49. Bxe6 {[%clk 0:00:04]}  Rxc1+ {[%clk 0:00:12]} 50. Kxc1 {[%clk 0:00:05]}  Rxe6 {[%clk 0:00:13]} 51. Kd2 {[%clk 0:00:05]}  Ka6 {[%clk 0:00:13]} 52. Rc5 {[%clk 0:00:06]}  Re4 {[%clk 0:00:13]} 53. Kd3 {[%clk 0:00:06]}  Re6 {[%clk 0:00:13]} 54. Kd4 {[%clk 0:00:06]}  Rd6+ {[%clk 0:00:14]} 55. Ke4 {[%clk 0:00:06]}  Re6+ {[%clk 0:00:14]} 56. Re5 {[%clk 0:00:06]}  Rc6 {[%clk 0:00:11]} 57. Rxe7 {[%clk 0:00:06]}  Kxa5 {[%clk 0:00:12]} 58. Ke5 {[%clk 0:00:07]}  Kb5 {[%clk 0:00:11]} 59. Re6 {[%clk 0:00:07]}  Rc1 {[%clk 0:00:10]} 60. Kf6 {[%clk 0:00:07]}  Kc5 {[%clk 0:00:09]} 61. Kxg6 {[%clk 0:00:08]}  Kd5 {[%clk 0:00:10]} 62. Re2 {[%clk 0:00:08]}  Rg1 {[%clk 0:00:09]} 63. Kf6 {[%clk 0:00:08]}  Kd6 {[%clk 0:00:09]} 64. g6 {[%clk 0:00:07]}  Rf1+ {[%clk 0:00:10]} 65. Kg7 {[%clk 0:00:07]}  Kd7 {[%clk 0:00:10]} 66. Kh7 {[%clk 0:00:07]}  Rh1+ {[%clk 0:00:10]} 67. Kg8 {[%clk 0:00:07]}  Rg1 {[%clk 0:00:11]} 68. g7 {[%clk 0:00:08]}  Rh1 {[%clk 0:00:10]} 69. Re4 {[%clk 0:00:08]}  Rh2 {[%clk 0:00:09]} 70. Kf7 {[%clk 0:00:07]}  Rf2+ {[%clk 0:00:10]} 71. Kg6 {[%clk 0:00:08]}  Rg2+ {[%clk 0:00:10]} 72. Kf6 {[%clk 0:00:08]}  Rg1 {[%clk 0:00:10]} 73. Re7+ {[%clk 0:00:07]}  Kd8 {[%clk 0:00:09]} 74. Re5 {[%clk 0:00:07]}  Rf1+ {[%clk 0:00:08]} 75. Rf5 {[%clk 0:00:06]}  Rg1 {[%clk 0:00:07]} 76. Rg5 {[%clk 0:00:07]} 1-0


[Site "https://www.chess.com"]

[Event "Titled Tuesday Blitz March 14 Early 2023"]
[White "Kvaloy, Aksel Bu"]
[Black "Vallejo Pons, Francisco"]
[WhiteFideId "1528815"]
[BlackFideId "2205530"]
[WhiteElo "2208"]
[BlackElo "2589"]
[Result "0-1"]
[Round "07"]
[TimeControl "180+2"]
[Date "2023.03.14"]
[WhiteClock "0:00:08"]
[BlackClock "0:00:09"]

1. d4 {[%clk 0:02:58]}  e6 {[%clk 0:02:59]} 2. e4 {[%clk 0:02:56]}  d5 {[%clk 0:02:59]} 3. Nc3 {[%clk 0:02:54]}  Bb4 {[%clk 0:02:58]} 4. Bd2 {[%clk 0:02:54]}  Ne7 {[%clk 0:02:56]} 5. a3 {[%clk 0:02:50]}  Bxc3 {[%clk 0:02:55]} 6. Bxc3 {[%clk 0:02:50]}  O-O {[%clk 0:02:51]} 7. Bd3 {[%clk 0:02:49]}  b6 {[%clk 0:02:48]} 8. exd5 {[%clk 0:02:49]}  Nxd5 {[%clk 0:02:26]} 9. Bd2 {[%clk 0:02:47]}  Bb7 {[%clk 0:02:25]} 10. Nf3 {[%clk 0:02:44]}  c5 {[%clk 0:02:21]} 11. dxc5 {[%clk 0:02:43]}  bxc5 {[%clk 0:02:20]} 12. O-O {[%clk 0:02:40]}  Nd7 {[%clk 0:02:10]} 13. c4 {[%clk 0:02:29]}  N5f6 {[%clk 0:02:09]} 14. Bc3 {[%clk 0:02:29]}  Ne4 {[%clk 0:01:52]} 15. Bxe4 {[%clk 0:02:06]}  Bxe4 {[%clk 0:01:53]} 16. Ne5 {[%clk 0:02:02]}  Nxe5 {[%clk 0:01:14]} 17. Qxd8 {[%clk 0:02:00]}  Rfxd8 {[%clk 0:01:12]} 18. Bxe5 {[%clk 0:02:00]}  f6 {[%clk 0:01:08]} 19. Bc3 {[%clk 0:01:58]}  Bd3 {[%clk 0:01:06]} 20. Rfd1 {[%clk 0:01:51]}  Bxc4 {[%clk 0:01:04]} 21. Rxd8+ {[%clk 0:01:51]}  Rxd8 {[%clk 0:01:05]} 22. f3 {[%clk 0:01:51]}  e5 {[%clk 0:01:02]} 23. Rc1 {[%clk 0:01:49]}  Bb3 {[%clk 0:01:01]} 24. Kf2 {[%clk 0:01:49]}  Kf7 {[%clk 0:01:00]} 25. Re1 {[%clk 0:01:44]}  h5 {[%clk 0:00:53]} 26. h4 {[%clk 0:01:41]}  a6 {[%clk 0:00:52]} 27. Re2 {[%clk 0:01:33]}  Bc4 {[%clk 0:00:52]} 28. Rc2 {[%clk 0:01:31]}  Bd3 {[%clk 0:00:50]} 29. Rd2 {[%clk 0:01:30]}  c4 {[%clk 0:00:51]} 30. Ke3 {[%clk 0:01:30]}  Rb8 {[%clk 0:00:48]} 31. g3 {[%clk 0:01:28]}  Ke6 {[%clk 0:00:48]} 32. Rd1 {[%clk 0:01:26]}  Rb5 {[%clk 0:00:46]} 33. Re1 {[%clk 0:01:25]}  Kf5 {[%clk 0:00:44]} 34. Kf2 {[%clk 0:01:24]}  Rb7 {[%clk 0:00:42]} 35. Ke3 {[%clk 0:01:18]}  a5 {[%clk 0:00:42]} 36. Kf2 {[%clk 0:01:16]}  a4 {[%clk 0:00:42]} 37. Ke3 {[%clk 0:01:14]}  Rd7 {[%clk 0:00:42]} 38. Kf2 {[%clk 0:01:10]}  Bc2 {[%clk 0:00:37]} 39. Re2 {[%clk 0:01:09]}  Bb1 {[%clk 0:00:34]} 40. Re1 {[%clk 0:01:04]}  Bd3 {[%clk 0:00:32]} 41. Ke3 {[%clk 0:01:03]}  Rd8 {[%clk 0:00:31]} 42. Kf2 {[%clk 0:01:03]}  Re8 {[%clk 0:00:29]} 43. Rd1 {[%clk 0:00:45]}  Ke6 {[%clk 0:00:27]} 44. Re1 {[%clk 0:00:45]}  Rb8 {[%clk 0:00:27]} 45. Ke3 {[%clk 0:00:44]}  Rg8 {[%clk 0:00:25]} 46. Kf2 {[%clk 0:00:44]}  Kf5 {[%clk 0:00:26]} 47. Ke3 {[%clk 0:00:43]}  g5 {[%clk 0:00:23]} 48. hxg5 {[%clk 0:00:43]}  Rxg5 {[%clk 0:00:24]} 49. Kf2 {[%clk 0:00:43]}  Rg8 {[%clk 0:00:23]} 50. Rh1 {[%clk 0:00:42]}  Kg6 {[%clk 0:00:23]} 51. Ke3 {[%clk 0:00:39]}  Rd8 {[%clk 0:00:23]} 52. Rd1 {[%clk 0:00:37]}  Rd7 {[%clk 0:00:23]} 53. Kf2 {[%clk 0:00:37]}  Rg7 {[%clk 0:00:21]} 54. Ke3 {[%clk 0:00:36]}  Rh7 {[%clk 0:00:20]} 55. Rh1 {[%clk 0:00:36]}  Kf7 {[%clk 0:00:20]} 56. Kf2 {[%clk 0:00:35]}  Ke6 {[%clk 0:00:20]} 57. Re1 {[%clk 0:00:18]}  Rd7 {[%clk 0:00:18]} 58. Rh1 {[%clk 0:00:17]}  Bg6 {[%clk 0:00:18]} 59. Re1 {[%clk 0:00:17]}  Rd3 {[%clk 0:00:17]} 60. Re2 {[%clk 0:00:16]}  Kd5 {[%clk 0:00:14]} 61. Rd2 {[%clk 0:00:16]}  Bf5 {[%clk 0:00:13]} 62. Rxd3+ {[%clk 0:00:13]}  cxd3 {[%clk 0:00:12]} 63. Ke3 {[%clk 0:00:13]}  Bg6 {[%clk 0:00:11]} 64. Bd2 {[%clk 0:00:12]}  Kc4 {[%clk 0:00:09]} 65. Bc3 {[%clk 0:00:12]}  Kb3 {[%clk 0:00:09]} 66. Kd2 {[%clk 0:00:08]}  Bf5 {[%clk 0:00:07]} 67. Ke3 {[%clk 0:00:08]}  Kc2 {[%clk 0:00:06]} 68. f4 {[%clk 0:00:01]}  exf4+ {[%clk 0:00:05]} 69. Kxf4 {[%clk 0:00:01]}  d2 {[%clk 0:00:03]} 70. Bxd2 {[%clk 0:00:01]}  Kxd2 {[%clk 0:00:04]} 71. Kxf5 {[%clk 0:00:02]}  Kc2 {[%clk 0:00:04]} 72. Kxf6 {[%clk 0:00:02]}  Kxb2 {[%clk 0:00:05]} 73. Kg5 {[%clk 0:00:03]}  Kxa3 {[%clk 0:00:06]} 74. Kxh5 {[%clk 0:00:04]}  Kb2 {[%clk 0:00:06]} 75. g4 {[%clk 0:00:05]}  a3 {[%clk 0:00:07]} 76. g5 {[%clk 0:00:06]}  a2 {[%clk 0:00:08]} 77. g6 {[%clk 0:00:06]}  a1=Q {[%clk 0:00:09]} 78. g7 {[%clk 0:00:07]}  Qa2 {[%clk 0:00:09]} 79. g8=Q {[%clk 0:00:08]}  Qxg8 {[%clk 0:00:09]} 0-1


[Site "https://www.chess.com"]

[Event "Titled Tuesday Blitz March 14 Early 2023"]
[White "Cornette, Matthieu"]
[Black "Al-Tarboush, Ward"]
[WhiteFideId "620084"]
[BlackFideId "7601450"]
[WhiteElo "2478"]
[BlackElo "2257"]
[Result "1-0"]
[Round "07"]
[TimeControl "180+2"]
[Date "2023.03.14"]
[WhiteClock "0:01:35"]
[BlackClock "0:01:00"]

1. e4 {[%clk 0:03:00]}  e5 {[%clk 0:02:53]} 2. Nc3 {[%clk 0:03:01]}  Nf6 {[%clk 0:02:38]} 3. d4 {[%clk 0:03:00]}  exd4 {[%clk 0:02:38]} 4. Qxd4 {[%clk 0:03:01]}  Nc6 {[%clk 0:02:38]} 5. Qd3 {[%clk 0:03:01]}  Bc5 {[%clk 0:02:38]} 6. Bf4 {[%clk 0:02:58]}  d6 {[%clk 0:02:37]} 7. f3 {[%clk 0:02:56]}  O-O {[%clk 0:02:35]} 8. Bg5 {[%clk 0:02:47]}  Be6 {[%clk 0:02:26]} 9. Qd2 {[%clk 0:02:36]}  Bb4 {[%clk 0:02:19]} 10. Nge2 {[%clk 0:02:23]}  Ne5 {[%clk 0:02:19]} 11. Nf4 {[%clk 0:02:17]}  Nc4 {[%clk 0:01:48]} 12. Bxc4 {[%clk 0:01:52]}  Bxc4 {[%clk 0:01:48]} 13. Nh5 {[%clk 0:01:51]}  Qe7 {[%clk 0:01:24]} 14. Bxf6 {[%clk 0:01:39]}  Qe6 {[%clk 0:01:00]} 15. Qg5 {[%clk 0:01:35]} 1-0


[Site "https://www.chess.com"]

[Event "Titled Tuesday Blitz March 14 Early 2023"]
[White "Zamorano, Jorge"]
[Black "Vlassov, Nikolai"]
[WhiteFideId "173770"]
[BlackFideId "4103360"]
[WhiteElo "2331"]
[BlackElo "2324"]
[Result "1/2-1/2"]
[Round "07"]
[TimeControl "180+2"]
[Date "2023.03.14"]
[WhiteClock "0:00:19"]
[BlackClock "0:01:08"]

1. e4 {[%clk 0:03:00]}  Nc6 {[%clk 0:02:59]} 2. Nf3 {[%clk 0:02:55]}  d5 {[%clk 0:02:59]} 3. exd5 {[%clk 0:02:55]}  Qxd5 {[%clk 0:03:00]} 4. Nc3 {[%clk 0:02:56]}  Qa5 {[%clk 0:03:00]} 5. g3 {[%clk 0:02:54]}  Nf6 {[%clk 0:02:43]} 6. Bg2 {[%clk 0:02:54]}  e6 {[%clk 0:02:44]} 7. O-O {[%clk 0:02:45]}  Bb4 {[%clk 0:02:41]} 8. d4 {[%clk 0:02:26]}  O-O {[%clk 0:02:39]} 9. Bd2 {[%clk 0:01:54]}  Rd8 {[%clk 0:02:39]} 10. a3 {[%clk 0:01:55]}  Bxc3 {[%clk 0:02:21]} 11. Bxc3 {[%clk 0:01:55]}  Qh5 {[%clk 0:02:20]} 12. Re1 {[%clk 0:01:49]}  Rb8 {[%clk 0:01:59]} 13. h3 {[%clk 0:01:48]}  b6 {[%clk 0:01:29]} 14. g4 {[%clk 0:01:06]}  Qb5 {[%clk 0:01:26]} 15. a4 {[%clk 0:00:58]}  Qa6 {[%clk 0:01:26]} 16. Qe2 {[%clk 0:00:32]}  Qxe2 {[%clk 0:01:23]} 17. Rxe2 {[%clk 0:00:33]}  Ba6 {[%clk 0:01:22]} 18. Ree1 {[%clk 0:00:30]}  Nd5 {[%clk 0:01:16]} 19. Bd2 {[%clk 0:00:30]}  Ndb4 {[%clk 0:01:12]} 20. Rac1 {[%clk 0:00:24]}  Na2 {[%clk 0:01:08]} 21. Rcd1 {[%clk 0:00:24]}  Nab4 {[%clk 0:01:07]} 22. Rc1 {[%clk 0:00:19]}  Na2 {[%clk 0:01:07]} 23. Rcd1 {[%clk 0:00:19]}  Nab4 {[%clk 0:01:08]} 24. Rc1 {[%clk 0:00:19]} 1/2-1/2


[Site "https://www.chess.com"]

[Event "Titled Tuesday Blitz March 14 Early 2023"]
[White "Dehtiarov, Roman"]
[Black "Akhmedinov, Satbek"]
[WhiteFideId "14186640"]
[BlackFideId "13714287"]
[WhiteElo "2162"]
[BlackElo "2090"]
[Result "1-0"]
[Round "07"]
[TimeControl "180+2"]
[Date "2023.03.14"]
[WhiteClock "0:01:18"]
[BlackClock "0:00:37"]

1. e4 {[%clk 0:02:57]}  c5 {[%clk 0:03:00]} 2. Nc3 {[%clk 0:02:57]}  Nc6 {[%clk 0:03:00]} 3. f4 {[%clk 0:02:57]}  g6 {[%clk 0:03:00]} 4. Nf3 {[%clk 0:02:58]}  Bg7 {[%clk 0:03:00]} 5. Bb5 {[%clk 0:02:59]}  e6 {[%clk 0:03:01]} 6. Bxc6 {[%clk 0:02:59]}  bxc6 {[%clk 0:03:02]} 7. O-O {[%clk 0:02:59]}  Ne7 {[%clk 0:03:02]} 8. d3 {[%clk 0:02:59]}  O-O {[%clk 0:02:59]} 9. Qe1 {[%clk 0:02:59]}  d6 {[%clk 0:02:55]} 10. Bd2 {[%clk 0:02:59]}  Rb8 {[%clk 0:02:55]} 11. b3 {[%clk 0:02:59]}  Ba6 {[%clk 0:02:50]} 12. Rd1 {[%clk 0:02:58]}  Kh8 {[%clk 0:02:50]} 13. Na4 {[%clk 0:02:58]}  Ng8 {[%clk 0:02:48]} 14. c4 {[%clk 0:02:58]}  f5 {[%clk 0:02:45]} 15. e5 {[%clk 0:02:57]}  Bc8 {[%clk 0:02:40]} 16. exd6 {[%clk 0:02:56]}  Qxd6 {[%clk 0:02:41]} 17. Bc3 {[%clk 0:02:56]}  h6 {[%clk 0:02:38]} 18. Ne5 {[%clk 0:02:54]}  Kh7 {[%clk 0:02:35]} 19. Qe3 {[%clk 0:02:54]}  Ne7 {[%clk 0:02:34]} 20. Qxc5 {[%clk 0:02:53]}  Qxc5+ {[%clk 0:02:32]} 21. Nxc5 {[%clk 0:02:54]}  a5 {[%clk 0:02:30]} 22. Rfe1 {[%clk 0:02:46]}  g5 {[%clk 0:02:29]} 23. Bxa5 {[%clk 0:02:42]}  Ra8 {[%clk 0:02:27]} 24. Bb4 {[%clk 0:02:42]}  Rxa2 {[%clk 0:02:23]} 25. fxg5 {[%clk 0:02:41]}  hxg5 {[%clk 0:02:23]} 26. Nf3 {[%clk 0:02:38]}  Rg8 {[%clk 0:02:07]} 27. Nxe6 {[%clk 0:02:35]}  Ng6 {[%clk 0:02:00]} 28. Nfxg5+ {[%clk 0:02:29]}  Kh6 {[%clk 0:02:00]} 29. Nf7+ {[%clk 0:02:29]}  Kh5 {[%clk 0:01:58]} 30. Nfg5 {[%clk 0:01:28]}  Nh4 {[%clk 0:01:44]} 31. Rd2 {[%clk 0:01:18]}  Rxd2 {[%clk 0:01:25]} 32. Nxg7+ {[%clk 0:01:17]}  Rxg7 {[%clk 0:01:25]} 33. Bxd2 {[%clk 0:01:18]}  Rxg5 {[%clk 0:01:19]} 34. Bxg5 {[%clk 0:01:19]}  Kxg5 {[%clk 0:01:20]} 35. Re8 {[%clk 0:01:19]}  Bd7 {[%clk 0:01:15]} 36. Re7 {[%clk 0:01:19]}  Bc8 {[%clk 0:01:15]} 37. Rc7 {[%clk 0:01:19]}  Be6 {[%clk 0:01:16]} 38. Rxc6 {[%clk 0:01:19]}  Bf7 {[%clk 0:01:16]} 39. b4 {[%clk 0:01:19]}  f4 {[%clk 0:01:15]} 40. b5 {[%clk 0:01:19]}  f3 {[%clk 0:01:15]} 41. gxf3 {[%clk 0:01:19]}  Nxf3+ {[%clk 0:01:16]} 42. Kf2 {[%clk 0:01:19]}  Ne5 {[%clk 0:01:15]} 43. Rc5 {[%clk 0:01:19]}  Kf4 {[%clk 0:01:14]} 44. Rxe5 {[%clk 0:01:18]}  Kxe5 {[%clk 0:01:14]} 45. Ke3 {[%clk 0:01:19]}  Bh5 {[%clk 0:01:05]} 46. d4+ {[%clk 0:01:18]}  Kd6 {[%clk 0:01:06]} 47. c5+ {[%clk 0:01:19]}  Kd5 {[%clk 0:01:06]} 48. b6 {[%clk 0:01:19]}  Kc6 {[%clk 0:01:00]} 49. d5+ {[%clk 0:01:19]}  Kb7 {[%clk 0:01:01]} 50. d6 {[%clk 0:01:19]}  Be8 {[%clk 0:01:00]} 51. h4 {[%clk 0:01:19]}  Kc6 {[%clk 0:01:00]} 52. Kd4 {[%clk 0:01:19]}  Bh5 {[%clk 0:00:58]} 53. Ke5 {[%clk 0:01:19]}  Bg4 {[%clk 0:00:51]} 54. Kf6 {[%clk 0:01:18]}  Bc8 {[%clk 0:00:43]} 55. Ke7 {[%clk 0:01:18]}  Bg4 {[%clk 0:00:37]} 56. h5 {[%clk 0:01:18]}  Bxh5 {[%clk 0:00:37]} 57. d7 {[%clk 0:01:18]} 1-0


[Site "https://www.chess.com"]

[Event "Titled Tuesday Blitz March 14 Early 2023"]
[White "Salinas Herrera, Pablo"]
[Black "Garakov, Mikhael"]
[WhiteFideId "3407128"]
[BlackFideId "4169034"]
[WhiteElo "2550"]
[BlackElo "2347"]
[Result "1-0"]
[Round "07"]
[TimeControl "180+2"]
[Date "2023.03.14"]
[WhiteClock "0:00:34"]
[BlackClock "0:00:24"]

1. Nf3 {[%clk 0:03:00]}  c5 {[%clk 0:02:58]} 2. b3 {[%clk 0:03:00]}  Nc6 {[%clk 0:02:53]} 3. Bb2 {[%clk 0:03:00]}  d6 {[%clk 0:02:54]} 4. c4 {[%clk 0:02:57]}  e5 {[%clk 0:02:51]} 5. e3 {[%clk 0:02:53]}  Nf6 {[%clk 0:02:22]} 6. d4 {[%clk 0:02:51]}  Bg4 {[%clk 0:02:12]} 7. dxe5 {[%clk 0:02:28]}  dxe5 {[%clk 0:02:11]} 8. Qxd8+ {[%clk 0:02:10]}  Rxd8 {[%clk 0:02:10]} 9. Nc3 {[%clk 0:01:44]}  e4 {[%clk 0:01:52]} 10. Nd2 {[%clk 0:01:42]}  Nb4 {[%clk 0:01:51]} 11. Rc1 {[%clk 0:01:35]}  Be7 {[%clk 0:01:29]} 12. h3 {[%clk 0:01:35]}  Bh5 {[%clk 0:01:25]} 13. a3 {[%clk 0:01:24]}  Nd3+ {[%clk 0:01:25]} 14. Bxd3 {[%clk 0:01:24]}  exd3 {[%clk 0:01:26]} 15. Nce4 {[%clk 0:01:13]}  Nxe4 {[%clk 0:01:17]} 16. Nxe4 {[%clk 0:01:14]}  Bg6 {[%clk 0:01:15]} 17. Nd2 {[%clk 0:01:13]}  O-O {[%clk 0:01:14]} 18. h4 {[%clk 0:01:09]}  h5 {[%clk 0:01:10]} 19. f3 {[%clk 0:01:09]}  Rfe8 {[%clk 0:01:06]} 20. Kf2 {[%clk 0:01:09]}  Bd6 {[%clk 0:01:00]} 21. g3 {[%clk 0:01:09]}  f6 {[%clk 0:00:57]} 22. Rhe1 {[%clk 0:01:08]}  a6 {[%clk 0:00:51]} 23. Bc3 {[%clk 0:01:05]}  b5 {[%clk 0:00:49]} 24. Rcd1 {[%clk 0:00:58]}  Bf7 {[%clk 0:00:41]} 25. Rb1 {[%clk 0:00:45]}  Rb8 {[%clk 0:00:40]} 26. Rec1 {[%clk 0:00:44]}  Be7 {[%clk 0:00:31]} 27. Ba5 {[%clk 0:00:42]}  Rec8 {[%clk 0:00:25]} 28. e4 {[%clk 0:00:38]}  g5 {[%clk 0:00:24]} 29. hxg5 {[%clk 0:00:35]}  fxg5 {[%clk 0:00:24]} 30. Bc3 {[%clk 0:00:34]} 1-0


[Site "https://www.chess.com"]

[Event "Titled Tuesday Blitz March 14 Early 2023"]
[White "Skvortsov, Andrei"]
[Black "Safin, Robert"]
[WhiteFideId "24108600"]
[BlackFideId "34189120"]
[WhiteElo "2259"]
[BlackElo "2245"]
[Result "0-1"]
[Round "07"]
[TimeControl "180+2"]
[Date "2023.03.14"]
[WhiteClock "0:00:16"]
[BlackClock "0:00:13"]

1. d4 {[%clk 0:03:00]}  Nf6 {[%clk 0:02:59]} 2. Nf3 {[%clk 0:03:00]}  d5 {[%clk 0:02:58]} 3. c4 {[%clk 0:03:00]}  e6 {[%clk 0:02:56]} 4. Nc3 {[%clk 0:02:58]}  c5 {[%clk 0:02:56]} 5. cxd5 {[%clk 0:02:57]}  cxd4 {[%clk 0:02:56]} 6. Qxd4 {[%clk 0:02:52]}  exd5 {[%clk 0:02:56]} 7. e4 {[%clk 0:02:53]}  dxe4 {[%clk 0:02:56]} 8. Qxd8+ {[%clk 0:02:52]}  Kxd8 {[%clk 0:02:57]} 9. Ng5 {[%clk 0:02:52]}  Be6 {[%clk 0:02:58]} 10. Nxe6+ {[%clk 0:02:51]}  fxe6 {[%clk 0:02:59]} 11. Bc4 {[%clk 0:02:51]}  Ke7 {[%clk 0:02:56]} 12. Bg5 {[%clk 0:02:51]}  Kf7 {[%clk 0:02:56]} 13. O-O-O {[%clk 0:02:49]}  Bb4 {[%clk 0:02:53]} 14. Bxf6 {[%clk 0:02:46]}  gxf6 {[%clk 0:02:54]} 15. Nxe4 {[%clk 0:02:46]}  Rc8 {[%clk 0:02:52]} 16. b3 {[%clk 0:02:43]}  b5 {[%clk 0:02:52]} 17. Nd2 {[%clk 0:02:29]}  Bxd2+ {[%clk 0:02:48]} 18. Rxd2 {[%clk 0:02:30]}  bxc4 {[%clk 0:02:48]} 19. Rc2 {[%clk 0:02:30]}  Nd7 {[%clk 0:02:46]} 20. Rd1 {[%clk 0:02:24]}  Ke7 {[%clk 0:02:29]} 21. bxc4 {[%clk 0:02:23]}  Rc5 {[%clk 0:02:16]} 22. Rd4 {[%clk 0:02:22]}  Rac8 {[%clk 0:02:16]} 23. Rh4 {[%clk 0:02:23]}  h5 {[%clk 0:02:14]} 24. Kb2 {[%clk 0:02:22]}  Ne5 {[%clk 0:02:08]} 25. Kb3 {[%clk 0:02:17]}  Ng6 {[%clk 0:01:32]} 26. Rd4 {[%clk 0:02:15]}  Rd8 {[%clk 0:01:32]} 27. Re4 {[%clk 0:02:15]}  Re5 {[%clk 0:01:24]} 28. Rxe5 {[%clk 0:02:09]}  Nxe5 {[%clk 0:01:25]} 29. c5 {[%clk 0:02:09]}  Rb8+ {[%clk 0:01:21]} 30. Kc3 {[%clk 0:02:04]}  Rb5 {[%clk 0:01:20]} 31. Kd4 {[%clk 0:02:03]}  Rb4+ {[%clk 0:01:19]} 32. Ke3 {[%clk 0:02:01]}  Kd7 {[%clk 0:01:16]} 33. Rd2+ {[%clk 0:02:00]}  Kc7 {[%clk 0:01:15]} 34. Rd1 {[%clk 0:01:53]}  Rc4 {[%clk 0:01:10]} 35. Rd6 {[%clk 0:01:51]}  Rxc5 {[%clk 0:01:03]} 36. Rxe6 {[%clk 0:01:50]}  Ra5 {[%clk 0:01:01]} 37. h3 {[%clk 0:01:46]}  Nd7 {[%clk 0:00:53]} 38. Re7 {[%clk 0:01:39]}  Rxa2 {[%clk 0:00:52]} 39. Rh7 {[%clk 0:01:38]}  Ra5 {[%clk 0:00:53]} 40. f3 {[%clk 0:01:39]}  Rg5 {[%clk 0:00:47]} 41. g4 {[%clk 0:01:39]}  hxg4 {[%clk 0:00:47]} 42. fxg4 {[%clk 0:01:39]}  a5 {[%clk 0:00:46]} 43. Kf4 {[%clk 0:01:39]}  a4 {[%clk 0:00:46]} 44. h4 {[%clk 0:01:39]}  Rc5 {[%clk 0:00:47]} 45. g5 {[%clk 0:01:39]}  fxg5+ {[%clk 0:00:47]} 46. hxg5 {[%clk 0:01:40]}  Rc1 {[%clk 0:00:42]} 47. Rh3 {[%clk 0:01:37]}  Rf1+ {[%clk 0:00:39]} 48. Kg4 {[%clk 0:01:32]}  Ne5+ {[%clk 0:00:32]} 49. Kh5 {[%clk 0:01:31]}  Kc6 {[%clk 0:00:32]} 50. g6 {[%clk 0:01:26]}  Rg1 {[%clk 0:00:28]} 51. Re3 {[%clk 0:01:12]}  Nxg6 {[%clk 0:00:26]} 52. Re8 {[%clk 0:01:11]}  Ne5 {[%clk 0:00:23]} 53. Rxe5 {[%clk 0:01:09]}  a3 {[%clk 0:00:18]} 54. Ra5 {[%clk 0:01:10]}  Rg3 {[%clk 0:00:16]} 55. Kh4 {[%clk 0:01:10]}  Rb3 {[%clk 0:00:17]} 56. Kg4 {[%clk 0:01:10]}  Kb6 {[%clk 0:00:17]} 57. Ra8 {[%clk 0:01:07]}  Kb5 {[%clk 0:00:18]} 58. Kf4 {[%clk 0:01:07]}  Rb4+ {[%clk 0:00:17]} 59. Ke3 {[%clk 0:01:04]}  Ra4 {[%clk 0:00:18]} 60. Rb8+ {[%clk 0:01:04]}  Kc4 {[%clk 0:00:18]} 61. Rc8+ {[%clk 0:00:33]}  Kb3 {[%clk 0:00:18]} 62. Kd3 {[%clk 0:00:15]}  a2 {[%clk 0:00:15]} 63. Rb8+ {[%clk 0:00:15]}  Rb4 {[%clk 0:00:13]} 64. Ra8 {[%clk 0:00:16]}  Kb2 {[%clk 0:00:13]} 0-1


[Site "https://www.chess.com"]

[Event "Titled Tuesday Blitz March 14 Early 2023"]
[White "Kozin, Yuri"]
[Black "Starozhilov, Leonid"]
[WhiteFideId "4129920"]
[BlackFideId "14106752"]
[WhiteElo "2522"]
[BlackElo "2402"]
[Result "0-1"]
[Round "07"]
[TimeControl "180+2"]
[Date "2023.03.14"]
[WhiteClock "0:00:35"]
[BlackClock "0:01:24"]

1. e4 {[%clk 0:03:00]}  g6 {[%clk 0:02:59]} 2. d4 {[%clk 0:03:00]}  Bg7 {[%clk 0:03:00]} 3. Nc3 {[%clk 0:03:01]}  d6 {[%clk 0:03:00]} 4. Nf3 {[%clk 0:02:59]}  Nf6 {[%clk 0:03:00]} 5. Be3 {[%clk 0:02:58]}  O-O {[%clk 0:02:59]} 6. Qd2 {[%clk 0:02:59]}  Bg4 {[%clk 0:02:55]} 7. Bh6 {[%clk 0:02:56]}  Bxf3 {[%clk 0:02:54]} 8. gxf3 {[%clk 0:02:56]}  e5 {[%clk 0:02:52]} 9. Bxg7 {[%clk 0:02:49]}  Kxg7 {[%clk 0:02:52]} 10. f4 {[%clk 0:02:50]}  Nc6 {[%clk 0:02:35]} 11. fxe5 {[%clk 0:02:28]}  dxe5 {[%clk 0:02:36]} 12. d5 {[%clk 0:02:29]}  Nd4 {[%clk 0:02:36]} 13. O-O-O {[%clk 0:02:27]}  Nh5 {[%clk 0:02:36]} 14. Nb1 {[%clk 0:02:10]}  Qf6 {[%clk 0:02:28]} 15. c3 {[%clk 0:02:01]}  Nf3 {[%clk 0:02:26]} 16. Qe3 {[%clk 0:01:53]}  Nh4 {[%clk 0:01:50]} 17. Be2 {[%clk 0:01:46]}  Nf4 {[%clk 0:01:50]} 18. Nd2 {[%clk 0:01:29]}  Qb6 {[%clk 0:01:26]} 19. Qxb6 {[%clk 0:00:35]}  Nxe2+ {[%clk 0:01:24]} 0-1


[Site "https://www.chess.com"]